{"text_format":"2","workbook":"xlsx","n_sheets":2,"sheets":["CENNIK POSTPAID NEW","CENNIK BOX NEW"],"not_rendered":{"charts":0,"images":0,"macros":0,"external_links":0,"defined_names":2,"comments":0,"pivot_tables":0},"unopened":[],"bounds":{"document_bytes":16777216,"sheet_cells":100000,"run_cost":"one","rows_first":2000,"rows_last":500,"rows_between":2000,"halvings":0,"cell_chars":16384,"cell_head_chars":4096},"cells_cut":0,"cells_raw":0,"read":"whole","date_system":"1900"}

{"sheet":"CENNIK POSTPAID NEW","index":0,"n_rows":97,"n_cols":24,"rows_kept":97,"cut":false,"hidden":false,"merged":[[30,18,30,23],[30,11,30,16],[30,5,30,9],[70,3,70,19],[78,5,78,23],[40,5,40,23],[41,11,41,16],[41,5,41,9],[41,18,41,23],[55,5,55,8],[15,5,15,23],[16,18,16,23],[16,11,16,16],[16,5,16,9],[29,5,29,23],[6,5,6,9],[6,11,6,16],[3,20,3,23],[5,5,5,23],[6,18,6,23],[3,3,3,19],[93,5,93,8],[56,5,56,8],[70,20,70,23],[72,5,72,23],[73,18,73,23],[73,11,73,16],[73,5,73,9],[56,18,56,22],[79,5,79,9],[79,11,79,16],[79,18,79,23],[92,5,92,8]]}
[{"$nulls":12},1.22,{"$nulls":5},1.22]
[]
[]
[null,null,null,"Cennik Modemów",{"$nulls":16},"od 21.02.2012"]
[]
[null,null,null,"Cennik Standard",null,"Punkty Sprzedaży PLAY"]
[null,null,null,"Umowa",null,"12 miesięcy",{"$nulls":5},"18 miesięcy",{"$nulls":6},"24 miesiące"]
[null,null,null,"Taryfa",null,"Play Online 39","Play Online 49","Play Online 69","Play Online 99","Play Online 149",null,"Play Online 15","Play Online 39","Play Online 49","Play Online 69","Play Online 99","Play Online 149",null,"Play Online 15","Play Online 39","Play Online 49","Play Online 69","Play Online 99","Play Online 149"]
[null,null,null,"Limit GB",null,"3 GB","7 GB","12 GB","16 GB","35 GB",null,"0,5 GB","3 GB","7 GB","12 GB","16 GB","35 GB",null,"0,5 GB","3 GB","7 GB","12 GB","16 GB","35 GB"]
[null,null,null,"Huawei E173U-2",null,99,59,39,1,1,null,99,29,1,1,1,1,null,49,1,1,1,1,1]
[null,null,null,"Huawei E353U-2",null,99,59,39,1,1,null,99,29,1,1,1,1,null,49,1,1,1,1,1]
[null,null,null,"Huawei E353S-2",null,199,149,99,59,29,null,129,49,1,1,1,1,null,79,39,1,1,1,1]
[null,null,null,"Huawei E5832",null,299,249,199,149,69,null,199,149,79,49,1.0085999999999999,1,null,149,99,59,19,1.0085999999999999,1]
[null,null,null,"ZTE MF631",null,99,59,39,1,1,null,99,29,1,1,1,1,null,49,1,1,1,1,1]
[]
[null,null,null,"Cennik Standard",null,"sklep.playmobile.pl   /   TeleSales"]
[null,null,null,"Umowa",null,"12 miesięcy",{"$nulls":5},"18 miesięcy",{"$nulls":6},"24 miesiące"]
[null,null,null,"Taryfa",null,"Play Online 39","Play Online 49","Play Online 69","Play Online 99","Play Online 149",null,"Play Online 15","Play Online 39","Play Online 49","Play Online 69","Play Online 99","Play Online 149",null,"Play Online 15","Play Online 39","Play Online 49","Play Online 69","Play Online 99","Play Online 149"]
[null,null,null,"Limit GB",null,"4 GB","8 GB","14 GB","19 GB","40 GB",null,"0,5 GB","4 GB","8 GB","14 GB","19 GB","40 GB",null,"0,5 GB","4 GB","8 GB","14 GB","19 GB","40 GB"]
[null,null,null,"Huawei E173U-2",null,49,{"$f":"G10-20","v":39},19,1,1,-20,49,1,1,1,1,1,-20,1,1,1,1,1,1]
[null,null,null,"Huawei E1820",null,49,39,19,1,1,-20,49,1,1,1,1,1,-20,1,1,1,1,1,1]
[null,null,null,"Huawei E353U-2",null,49,39,19,1,1,null,49,1,1,1,1,1,null,1,1,1,1,1,1]
[null,null,null,"Huawei E353S-2",null,179,129,79,39,9,null,109,29,1,1,1,1,null,{"$f":"S12-20","v":59},1,1,1,1,1]
[null,null,null,"Huawei E5832",null,279,229,179,129,59,-20,179,129,69,49,1,1,-20,129,89,49,19,1,1]
[null,null,null,"ZTE MF631",null,49,39,19,1,1,null,49,1,1,1,1,1,null,1,1,1,1,1,1]
[null,null,null,"ZTE MF637+MF10",null,169,119,69,19,1,null,89,29,1,1,1,1,null,49,1,1,1,1,1]
[null,null,null,"Huawei E173U-2 + antena 9dbi",null,70,59,39,22,22,-20,70,22,22,22,22,22,-20,22,22,22,22,22,22]
[null,null,null,"ZTE MF631 + antena 9dbi",null,70,59,39,22,22,-20,70,22,22,22,22,22,-20,22,22,22,22,22,22]
[]
[null,null,null,"Cennik Standard",null,"RePLAY Online 2"]
[null,null,null,"Umowa",null,"12 miesięcy",{"$nulls":5},"18 miesięcy",{"$nulls":6},"24 miesiące"]
[null,null,null,"Taryfa",null,"Play Online 39","Play Online 49","Play Online 69","Play Online 99","Play Online 149",null,"Play Online 15",null,"Play Online 49","Play Online 69","Play Online 99","Play Online 149",null,"Play Online 15",null,"Play Online 49","Play Online 69","Play Online 99","Play Online 149"]
[null,null,null,"Limit GB",null,"3 GB","7 GB","12 GB","16 GB","35 GB",null,"0,5 GB",null,"7 GB","12 GB","16 GB","35 GB",null,"0,5 GB",null,"7 GB","12 GB","16 GB","35 GB"]
[null,null,null,"Huawei E173U-2",null,79,39,19,1,1,null,79,null,1,1,1,1,null,29,null,1,1,1,1]
[null,null,null,"Huawei E1820",null,79,39,19,1,1,null,79,null,1,1,1,1,null,29,null,1,1,1,1]
[null,null,null,"Huawei E353U-2",null,79,{"$f":"G22","v":39},19,1,1,null,79,null,1,{"$f":"O22","v":1},1,1,null,29,null,{"$f":"U22","v":1},1,1,1]
[null,null,null,"Huawei E353S-2",null,179,129,79,39,9,null,109,null,1,1,1,1,null,59,null,1,1,1,1]
[null,null,null,"Huawei E5832",null,279,229,179,129,59,null,{"$f":"L24","v":179},null,{"$f":"N24","v":69},39,1,1,null,129,null,49,19,1,1]
[null,null,null,"ZTE MF631",null,79,39,19,1,1,null,79,null,1,1,1,1,null,29,null,1,1,1,1]
[]
[null,null,null,"Cennik Standard",null,"RePlay Online 2 TeleSales"]
[null,null,null,"Umowa",null,"12 miesięcy",{"$nulls":5},"18 miesięcy",{"$nulls":6},"24 miesiące"]
[null,null,null,"Taryfa",null,"Play Online 39","Play Online 49","Play Online 69","Play Online 99","Play Online 149",null,"Play Online 15",null,"Play Online 49","Play Online 69","Play Online 99","Play Online 149",null,"Play Online 15",null,"Play Online 49","Play Online 69","Play Online 99","Play Online 149"]
[null,null,null,"Limit GB",null,"4 GB","8 GB","14 GB","19 GB","40 GB",null,"0,5 GB",null,"8 GB","14 GB","19 GB","40 GB",null,"0,5 GB",null,"8 GB","14 GB","19 GB","40 GB"]
[null,null,null,"Huawei E173U-2",null,49,39,19,1,1,-20,49,null,1,1,1,1,-20,1,null,1,1,1,1]
[null,null,null,"Huawei E1820",null,49,39,19,1,1,-20,49,null,1,1,1,1,-20,1,null,1,1,1,1]
[null,null,null,"Huawei E353U-2",null,49,{"$f":"G36","v":39},19,1,1,null,49,null,{"$f":"N36","v":1},{"$f":"O36","v":1},{"$f":"P36","v":1},{"$f":"Q36","v":1},null,1,null,{"$f":"U36","v":1},1,1,1]
[null,null,null,"Huawei E353S-2",null,179,129,79,39,9,null,109,null,1,1,1,1,null,59,null,1,1,1,1]
[null,null,null,"Huawei E5832",null,279,229,179,129,59,-20,179,null,59,39,1,1,-20,129,null,39,1,1,1]
[null,null,null,"ZTE MF631",null,49,39,19,1,1,null,49,null,1,1,1,1,null,1,null,1,1,1,1]
[null,null,null,"ZTE MF637+MF10",null,169,119,69,19,1,-20,89,null,1,1,1,1,-20,49,null,1,1,1,1]
[null,null,null,"Huawei E173u-2 + Antena 9dbi",null,70,59,39,22,22,null,70,null,22,22,22,22,null,22,null,22,22,22,22]
[null,null,null,"ZTE MF631 + antena 9dbi",null,70,59,39,22,22,null,70,null,22,22,22,22,null,22,null,22,22,22,22]
[]
[]
[null,null,null,"Cennik Standard",null,"B I Z N E S"]
[null,null,null,"Umowa",null,"18 miesięcy"]
[null,null,null,"Taryfa",null,"Play Online 49","Play Online 69","Play Online 99","Play Online 149"]
[null,null,null,"Limit GB",null,"7 GB","12 GB","16 GB","35 GB"]
[null,null,null,"Huawei E173U-2",null,1,1,1,1]
[null,null,null,"Huawei E353U-2",null,1,1,1,1]
[null,null,null,"Huawei E353S-2",null,49,1,1,1]
[null,null,null,"Huawei E5832",null,59,39,1,1]
[null,null,null,"ZTE MF631",null,1,1,1,1]
[]
[]
[]
[]
[]
[]
[null,null,null,"Cennik Modemów (w ograniczonej dostępności)",{"$nulls":16},"od 21.02.2012"]
[]
[null,null,null,"Cennik Standard",null,"Punkty Sprzedaży PLAY"]
[null,null,null,"Umowa",null,"12 miesięcy",{"$nulls":5},"18 miesięcy",{"$nulls":6},"24 miesiące"]
[null,null,null,"Taryfa",null,"Play Online 39","Play Online 49","Play Online 69","Play Online 99","Play Online 149",null,"Play Online 15","Play Online 39","Play Online 49","Play Online 69","Play Online 99","Play Online 149",null,"Play Online 15","Play Online 39","Play Online 49","Play Online 69","Play Online 99","Play Online 149"]
[null,null,null,"Limit GB",null,"3 GB","7 GB","12 GB","16 GB","35 GB",null,"0,5 GB","3 GB","7 GB","12 GB","16 GB","35 GB",null,"0,5 GB","3 GB","7 GB","12 GB","16 GB","35 GB"]
[null,null,null,"Huawei E1820",null,99,59,39,1,1,null,99,29,1,1,1,1,null,49,1,1,1,1,1]
[]
[null,null,null,"Cennik Standard",null,"sklep.playmobile.pl"]
[null,null,null,"Umowa",null,"12 miesiecy",{"$nulls":5},"18 miesięcy",{"$nulls":6},"24 miesiące"]
[null,null,null,"Taryfa",null,"Play Online 39","Play Online 49","Play Online 69","Play Online 99","Play Online 149",null,"Play Online 15","Play Online 39","Play Online 49","Play Online 69","Play Online 99","Play Online 149",null,"Play Online 15","Play Online 39","Play Online 49","Play Online 69","Play Online 99","Play Online 149"]
[null,null,null,"Limit GB",null,"3 GB","7 GB","12 GB","16 GB","35 GB",null,"0,5 GB","3 GB","7 GB","12 GB","16 GB","35 GB",null,"0,5 GB","3 GB","7 GB","12 GB","16 GB","35 GB"]
[null,null,null,"Huawei E220",null,1,1,1,1,1,null,1,1,1,1,1,1,null,1,1,1,1,1,1]
[null,null,null,"Huawei E160",null,1,1,1,1,1,null,1,1,1,1,1,1,null,1,1,1,1,1,1]
[null,null,null,"Huawei E169",null,1,1,1,1,1,null,1,1,1,1,1,1,null,1,1,1,1,1,1]
[null,null,null,"Huawei E156G",null,1,1,1,1,1,null,1,1,1,1,1,1,null,1,1,1,1,1,1]
[null,null,null,"Huawei E176G",null,1,1,1,1,1,null,1,1,1,1,1,1,null,1,1,1,1,1,1]
[null,null,null,"Huawei E870",null,1,1,1,1,1,null,1,1,1,1,1,1,null,1,1,1,1,1,1]
[null,null,null,"Huawei E1750C",null,1,1,1,1,1,null,1,1,1,1,1,1,null,1,1,1,1,1,1]
[null,null,null,"ZTE MF626",null,1,1,1,1,1,null,1,1,1,1,1,1,null,1,1,1,1,1,1]
[null,null,null,"ZTE MF637",null,1,1,1,1,1,null,1,1,1,1,1,1,null,1,1,1,1,1,1]
[]
[null,null,null,"Cennik Standard",null,"B I Z N E S"]
[null,null,null,"Umowa",null,"18 miesięcy"]
[null,null,null,"Taryfa",null,"Play Online 49","Play Online 69","Play Online 99","Play Online 149"]
[null,null,null,"Limit GB",null,"7 GB","12 GB","16 GB","35 GB"]
[null,null,null,"Huawei E1820",null,19,1,1,1]

{"sheet":"CENNIK BOX NEW","index":1,"n_rows":122,"n_cols":10,"rows_kept":122,"cut":false,"hidden":false,"merged":[[2,8,2,9],[2,3,2,7],[38,4,38,9],[39,4,39,6],[39,7,39,9],[36,3,36,9],[21,4,21,6],[21,7,21,9],[4,4,4,9],[5,4,5,6],[5,7,5,9],[20,4,20,9],[54,4,54,9],[55,4,55,6],[55,7,55,9],[108,4,108,6],[108,7,108,9],[71,3,71,9],[73,4,73,9],[74,4,74,6],[74,7,74,9],[89,4,89,9],[90,4,90,6],[90,7,90,9],[105,3,105,9],[107,4,107,9]]}
[{"$nulls":5},1.22,null,1.22]
[]
[null,null,null,"Cennik Zestawów Oferty Play Online Box II",{"$nulls":4},"od 21.02.2011"]
[]
[null,null,null,"Cennik Standard","P O S"]
[{"$nulls":4},"24 miesiące",null,null,"36 miesięcy"]
[null,null,null,"Urządzenie / Taryfa","12 GB","16 GB","35 GB","12 GB","16 GB","35 GB"]
[null,null,null,"Huawei E5832 z wbudowanym modemem",1,1,1,1,1,1]
[null,null,null,"Netbook HP Mini 110 z modemem",399,99,1,1,1,1]
[null,null,null,"Netbook Toshiba NB520 z modemem",499,199,1,199,1,1]
[null,null,null,"Netbook Samsung NC210 z modemem",499,199,1,199,1,1]
[null,null,null,"Samsung Galaxy Tab z wbudowanym modemem",399,99,1,99,1,1]
[null,null,null,"Samsung Galaxy Tab 10.1",1299,999,399,899,499,1]
[null,null,null,"ZTE Light z wbudowanym modemem",199,1,1,1,1,1]
[null,null,null,"HTC Flyer",1999,1699,1299,1699,1399,899]
[null,null,null,"Morotola Xoom",1499,1099,499,999,699,199]
[null,null,null,"Sony Playstation Vita",649,449,99,399,99,1]
[null,null,null,"Apple iPAD 3G 16GB z wbudowanym modemem",2499,2099,1599,2199,1599,799]
[null,null,null,"Apple iPAD 2 3G 16GB z wbudowanym modemem",2399,1999,1699,2199,1899,199]
[]
[null,null,null,"Cennik Standard","e S H O P"]
[{"$nulls":4},"24 miesiące",null,null,"36 miesięcy"]
[null,null,null,"Urządzenie / Taryfa","14 GB","19 GB","40 GB","14 GB","19 GB","40 GB"]
[null,null,null,"Huawei E5832 z wbudowanym modemem",1,1,1,1,1,1]
[null,null,null,"Netbook HP Mini 110 z modemem",299]
[null,null,null,"Netbook Toshiba NB520 z modemem",399]
[null,null,null,"Netbook Samsung NC210 z modemem",399]
[null,null,null,"Samsung Galaxy Tab z wbudowanym modemem",299]
[null,null,null,"Samsung Galaxy Tab 10.1",1199]
[null,null,null,"ZTE Light z wbudowanym modemem",199]
[null,null,null,"HTC Flyer",1899]
[null,null,null,"Morotola Xoom",1199]
[null,null,null,"Sony Playstation Vita",649]
[null,null,null,"Apple iPAD 3G 16GB z wbudowanym modemem",2399]
[null,null,null,"Apple iPAD 2 3G 16GB z wbudowanym modemem",2299]
[]
[null,null,null,"RePlay Online Box II"]
[]
[null,null,null,"Cennik Standard","P O S"]
[{"$nulls":4},"24 miesiące",null,null,"36 miesięcy"]
[null,null,null,"Urządzenie / Taryfa","12 GB","16 GB","35 GB","12 GB","16 GB","35 GB"]
[null,null,null,"Huawei E5832 z wbudowanym modemem",1,1,1,1,1,1]
[null,null,null,"Netbook HP Mini 110 z modemem",299,1,1,1,1,1]
[null,null,null,"Netbook Toshiba NB520 z modemem",399,99,1,99,1,1]
[null,null,null,"Netbook Samsung NC210 z modemem",399,99,1,99,1,1]
[null,null,null,"Samsung Galaxy Tab z wbudowanym modemem",399,99,1,99,1,1]
[null,null,null,"Samsung Galaxy Tab 10.1",1199,899,299,799,399,1]
[null,null,null,"ZTE Light z wbudowanym modemem",199,1,1,1,1,1]
[null,null,null,"HTC Flyer",1899,1599,1299,1599,1299,799]
[null,null,null,"Morotola Xoom",1499,1099,499,999,699,199]
[null,null,null,"Sony Playstation Vita",649,449,99,399,99,1]
[null,null,null,"Apple iPAD 3G 16GB z wbudowanym modemem",2399,1999,1499,2099,1499,699]
[null,null,null,"Apple iPAD 2 3G 16GB z wbudowanym modemem",2299,1899,1599,2099,1799,199]
[]
[null,null,null,"Cennik Standard","e S H O P  /   T e l e s a l e s "]
[{"$nulls":4},"24 miesiące",null,null,"36 miesięcy"]
[null,null,null,"Urządzenie / Taryfa","14 GB","19 GB","40 GB","14 GB","19 GB","40 GB"]
[null,null,null,"Huawei E5832 z wbudowanym modemem",1,1,1,1,1,1]
[null,null,null,"Netbook HP Mini 110 z modemem",299,1,1,1,1,1]
[null,null,null,"Netbook Toshiba NB520 z modemem",399,99,1,99,1,1]
[null,null,null,"Netbook Samsung NC210 z modemem",399,99,1,99,1,1]
[null,null,null,"Samsung Galaxy Tab z wbudowanym modemem",299,99,1,99,1,1]
[null,null,null,"Samsung Galaxy Tab 10.1",1199,899,299,799,399,1]
[null,null,null,"ZTE Light z wbudowanym modemem",199,1,1,1,1,1]
[null,null,null,"HTC Flyer",1899,1599,1299,1599,1299,799]
[null,null,null,"Morotola Xoom",1199,999,399,899,599,99]
[null,null,null,"Sony Playstation Vita",649,449,99,399,99,1]
[null,null,null,"Apple iPAD 3G 16GB z wbudowanym modemem",2399,1999,1499,2099,1499,699]
[null,null,null,"Apple iPAD 2 3G 16GB z wbudowanym modemem",2299,1899,1599,2099,1799,199]
[]
[]
[null,null,null,"Cennik Zestawów Oferty Play Online Box II dla Abonentów Play"]
[]
[null,null,null,"Cennik Standard","P O S"]
[{"$nulls":4},"24 miesiące",null,null,"36 miesięcy"]
[null,null,null,"Urządzenie / Taryfa","12 GB","16 GB","35 GB","12 GB","16 GB","35 GB"]
[null,null,null,"Huawei E5832 z wbudowanym modemem",1,1,1,1,1,1]
[null,null,null,"Netbook HP Mini 110 z modemem",299,1,1,1,1,1]
[null,null,null,"Netbook Toshiba NB520 z modemem",399,99,1,99,1,1]
[null,null,null,"Netbook Samsung NC210 z modemem",399,99,1,99,1,1]
[null,null,null,"Samsung Galaxy Tab z wbudowanym modemem",399,99,1,99,1,1]
[null,null,null,"Samsung Galaxy Tab 10.1",1199,899,299,799,399,1]
[null,null,null,"ZTE Light z wbudowanym modemem",199,1,1,1,1,1]
[null,null,null,"HTC Flyer",1999,1699,1399,1699,1399,899]
[null,null,null,"Morotola Xoom",1499,1099,499,999,699,199]
[null,null,null,"Sony Playstation Vita",649,449,99,399,99,1]
[null,null,null,"Apple iPAD 3G 16GB z wbudowanym modemem",2399,1999,1499,2099,1499,699]
[null,null,null,"Apple iPAD 2 3G 16GB z wbudowanym modemem",2299,1899,1599,2099,1799,199]
[]
[null,null,null,"Cennik Standard","e S H O P  /   T e l e s a l e s "]
[{"$nulls":4},"24 miesiące",null,null,"36 miesięcy"]
[null,null,null,"Urządzenie / Taryfa","14 GB","19 GB","40 GB","14 GB","19 GB","40 GB"]
[null,null,null,"Huawei E5832 z wbudowanym modemem",1,1,1,1,1,1]
[null,null,null,"Netbook HP Mini 110 z modemem",299,1,1,1,1,1]
[null,null,null,"Netbook Toshiba NB520 z modemem",399,99,1,99,1,1]
[null,null,null,"Netbook Samsung NC210 z modemem",399,99,1,99,1,1]
[null,null,null,"Samsung Galaxy Tab z wbudowanym modemem",299,99,1,99,1,1]
[null,null,null,"Samsung Galaxy Tab 10.1",1199,899,299,799,399,1]
[null,null,null,"ZTE Light z wbudowanym modemem",199,1,1,1,1,1]
[null,null,null,"HTC Flyer",1899,1599,1299,1599,1299,799]
[null,null,null,"Morotola Xoom",1199,999,399,899,599,99]
[null,null,null,"Sony Playstation Vita"]
[null,null,null,"Apple iPAD 3G 16GB z wbudowanym modemem",2399,1999,1499,2099,1499,699]
[null,null,null,"Apple iPAD 2 3G 16GB z wbudowanym modemem",2299,1899,1509,2099,1799,199]
[]
[null,null,null,"Cennik Zestawów Oferty Play Online Box II dla Pracowników Play"]
[]
[null,null,null,"Cennik Standard","P O S"]
[{"$nulls":4},"24 miesiące",null,null,"36 miesięcy"]
[null,null,null,"Urządzenie / Taryfa","12 GB","16 GB","35 GB","12 GB","16 GB","35 GB"]
[null,null,null,"Huawei E5832 z wbudowanym modemem",1,1,1,1,1,1]
[null,null,null,"Netbook HP Mini 110 z modemem",199,1,1,1,1,1]
[null,null,null,"Netbook Toshiba NB520 z modemem",399,99,1,99,1,1]
[null,null,null,"Netbook Samsung NC210 z modemem",399,99,1,99,1,1]
[null,null,null,"Samsung Galaxy Tab z wbudowanym modemem",299,99,1,99,1,1]
[null,null,null,"Samsung Galaxy Tab 10.1",1199,899,299,799,399,1]
[null,null,null,"ZTE Light z wbudowanym modemem",199,1,1,1,1,1]
[null,null,null,"HTC Flyer",1899,1599,1299,1599,1299,799]
[null,null,null,"Morotola Xoom",1199,999,399,899,599,99]
[null,null,null,"Sony Playstation Vita",649,449,99,399,99,1]
[null,null,null,"Apple iPAD 3G 16GB z wbudowanym modemem",2299,1899,1399,1999,1399,599]
[null,null,null,"Apple iPAD 2 3G 16GB z wbudowanym modemem",2299,1899,1599,2099,1799,199]